[Event "Titled Tuesday Blitz November 14 Early 2023"]
[White "Herman, Matthew"]
[Black "Timerkhanov, Alexander"]
[WhiteFideId "2028964"]
[BlackFideId "24177938"]
[WhiteElo "2535"]
[BlackElo "2685"]
[Result "0-1"]
[Round "10"]
[TimeControl "180+1"]
[Date "2023.11.14"]
[WhiteClock "0:00:08"]
[BlackClock "0:01:35"]
[Board "62"]

1. e4 {[%clk 0:03:00]}  c6 {[%clk 0:02:59]} 2. d4 {[%clk 0:03:00]}  d5 {[%clk 0:02:59]} 3. e5 {[%clk 0:03:01]}  Bf5 {[%clk 0:02:59]} 4. h4 {[%clk 0:03:02]}  h5 {[%clk 0:02:59]} 5. c4 {[%clk 0:03:02]}  e6 {[%clk 0:02:58]} 6. Nc3 {[%clk 0:03:02]}  Nd7 {[%clk 0:02:57]} 7. cxd5 {[%clk 0:03:03]}  cxd5 {[%clk 0:02:56]} 8. Bd3 {[%clk 0:03:03]}  Bxd3 {[%clk 0:02:53]} 9. Qxd3 {[%clk 0:03:04]}  a6 {[%clk 0:02:53]} 10. Nf3 {[%clk 0:02:50]}  Ne7 {[%clk 0:02:52]} 11. Bg5 {[%clk 0:02:45]}  Qb6 {[%clk 0:02:48]} 12. O-O {[%clk 0:02:44]}  Nf5 {[%clk 0:02:47]} 13. Nxd5 {[%clk 0:02:45]}  exd5 {[%clk 0:02:43]} 14. Qxf5 {[%clk 0:02:44]}  Qe6 {[%clk 0:02:42]} 15. Qxe6+ {[%clk 0:02:28]}  fxe6 {[%clk 0:02:43]} 16. Rac1 {[%clk 0:02:28]}  Bb4 {[%clk 0:02:43]} 17. Rc7 {[%clk 0:02:22]}  Rb8 {[%clk 0:02:43]} 18. Rfc1 {[%clk 0:02:22]}  Rf8 {[%clk 0:02:38]} 19. Ne1 {[%clk 0:01:25]}  Ba5 {[%clk 0:02:35]} 20. R7c2 {[%clk 0:01:14]}  Bb6 {[%clk 0:02:21]} 21. Be3 {[%clk 0:00:48]}  Ke7 {[%clk 0:02:18]} 22. g3 {[%clk 0:00:42]}  Ra8 {[%clk 0:02:17]} 23. Nd3 {[%clk 0:00:39]}  g6 {[%clk 0:02:11]} 24. Nf4 {[%clk 0:00:27]}  Kf7 {[%clk 0:02:11]} 25. Kf1 {[%clk 0:00:20]}  Rad8 {[%clk 0:02:08]} 26. Ke2 {[%clk 0:00:16]}  Nb8 {[%clk 0:02:08]} 27. Kd3 {[%clk 0:00:16]}  Nc6 {[%clk 0:02:07]} 28. Rxc6 {[%clk 0:00:17]}  bxc6 {[%clk 0:02:05]} 29. Rxc6 {[%clk 0:00:17]}  Rb8 {[%clk 0:02:05]} 30. Nxe6 {[%clk 0:00:13]}  Rfc8 {[%clk 0:02:04]} 31. Ng5+ {[%clk 0:00:10]}  Kg7 {[%clk 0:02:02]} 32. Rd6 {[%clk 0:00:10]}  Bd8 {[%clk 0:01:55]} 33. Rd7+ {[%clk 0:00:05]}  Kg8 {[%clk 0:01:55]} 34. b3 {[%clk 0:00:03]}  Bxg5 {[%clk 0:01:53]} 35. Bxg5 {[%clk 0:00:04]}  Rb5 {[%clk 0:01:53]} 36. e6 {[%clk 0:00:04]}  Re8 {[%clk 0:01:41]} 37. e7 {[%clk 0:00:01]}  Kf7 {[%clk 0:01:42]} 38. Rd6 {[%clk 0:00:01]}  a5 {[%clk 0:01:41]} 39. Rf6+ {[%clk 0:00:01]}  Kg7 {[%clk 0:01:40]} 40. Rc6 {[%clk 0:00:02]}  a4 {[%clk 0:01:39]} 41. bxa4 {[%clk 0:00:02]}  Ra5 {[%clk 0:01:40]} 42. Rc5 {[%clk 0:00:02]}  Rxa4 {[%clk 0:01:40]} 43. Rxd5 {[%clk 0:00:02]}  Rxa2 {[%clk 0:01:41]} 44. f4 {[%clk 0:00:03]}  Kf7 {[%clk 0:01:38]} 45. Rd6 {[%clk 0:00:03]}  Rg2 {[%clk 0:01:36]} 46. Ke4 {[%clk 0:00:03]}  Rxg3 {[%clk 0:01:35]} 47. d5 {[%clk 0:00:03]}  Rg1 {[%clk 0:01:35]} 48. Rd7 {[%clk 0:00:04]}  Re1+ {[%clk 0:01:36]} 49. Kd4 {[%clk 0:00:04]}  Rd1+ {[%clk 0:01:36]} 50. Ke5 {[%clk 0:00:05]}  Re1+ {[%clk 0:01:37]} 51. Kd6 {[%clk 0:00:05]}  Ra1 {[%clk 0:01:37]} 52. Rc7 {[%clk 0:00:05]}  Ra6+ {[%clk 0:01:36]} 53. Ke5 {[%clk 0:00:06]}  Ra1 {[%clk 0:01:34]} 54. d6 {[%clk 0:00:05]}  Re1+ {[%clk 0:01:34]} 55. Kd5 {[%clk 0:00:06]}  Rd1+ {[%clk 0:01:34]} 56. Kc6 {[%clk 0:00:07]}  Ke6 {[%clk 0:01:34]} 57. d7 {[%clk 0:00:06]}  Rd6+ {[%clk 0:01:32]} 58. Kb7 {[%clk 0:00:06]}  Rxd7 {[%clk 0:01:33]} 59. Rxd7 {[%clk 0:00:07]}  Kxd7 {[%clk 0:01:34]} 60. Kb6 {[%clk 0:00:07]}  Rxe7 {[%clk 0:01:31]} 61. Bxe7 {[%clk 0:00:07]}  Kxe7 {[%clk 0:01:32]} 62. Kc5 {[%clk 0:00:07]}  Ke6 {[%clk 0:01:33]} 63. Kd4 {[%clk 0:00:08]}  Kf5 {[%clk 0:01:34]} 64. Ke3 {[%clk 0:00:09]}  Kg4 {[%clk 0:01:34]} 65. Ke4 {[%clk 0:00:09]}  Kxh4 {[%clk 0:01:35]} 66. Ke5 {[%clk 0:00:08]}  Kg4 {[%clk 0:01:35]} 0-1


[Site "https://www.chess.com"]

[Event "Titled Tuesday Blitz November 14 Early 2023"]
[White "Shuvalov, Evgenij"]
[Black "Raahul V S"]
[WhiteFideId "4187237"]
[BlackFideId "25035525"]
[WhiteElo "2518"]
[BlackElo "2681"]
[Result "1-0"]
[Round "10"]
[TimeControl "180+1"]
[Date "2023.11.14"]
[WhiteClock "0:00:36"]
[BlackClock "0:00:00"]
[Board "64"]

1. d4 {[%clk 0:03:00]}  d5 {[%clk 0:02:59]} 2. c4 {[%clk 0:03:01]}  c6 {[%clk 0:02:59]} 3. Nc3 {[%clk 0:02:59]}  e6 {[%clk 0:02:58]} 4. e3 {[%clk 0:02:57]}  f5 {[%clk 0:02:57]} 5. Nf3 {[%clk 0:02:55]}  Nf6 {[%clk 0:02:57]} 6. Bd3 {[%clk 0:02:54]}  Bd6 {[%clk 0:02:56]} 7. O-O {[%clk 0:02:53]}  O-O {[%clk 0:02:57]} 8. b3 {[%clk 0:02:53]}  Ne4 {[%clk 0:02:54]} 9. Ne2 {[%clk 0:02:51]}  Nd7 {[%clk 0:02:52]} 10. Bb2 {[%clk 0:02:50]}  g5 {[%clk 0:02:44]} 11. Bc2 {[%clk 0:02:35]}  Qc7 {[%clk 0:02:42]} 12. h3 {[%clk 0:02:18]}  h6 {[%clk 0:02:33]} 13. Ne1 {[%clk 0:02:16]}  Ndf6 {[%clk 0:02:28]} 14. Nd3 {[%clk 0:02:15]}  g4 {[%clk 0:02:15]} 15. h4 {[%clk 0:02:09]}  Nh5 {[%clk 0:01:58]} 16. g3 {[%clk 0:01:53]}  Bxg3 {[%clk 0:01:20]} 17. fxg3 {[%clk 0:01:54]}  Nhxg3 {[%clk 0:01:20]} 18. Ne5 {[%clk 0:01:35]}  Nxf1 {[%clk 0:01:07]} 19. Qxf1 {[%clk 0:01:36]}  Qg7 {[%clk 0:00:52]} 20. Nf4 {[%clk 0:01:31]}  Bd7 {[%clk 0:00:45]} 21. Qg2 {[%clk 0:01:23]}  Rad8 {[%clk 0:00:18]} 22. Ba3 {[%clk 0:01:07]}  c5 {[%clk 0:00:17]} 23. Bxe4 {[%clk 0:01:07]}  fxe4 {[%clk 0:00:17]} 24. Bxc5 {[%clk 0:01:06]}  Rf5 {[%clk 0:00:18]} 25. Qxg4 {[%clk 0:00:50]}  b6 {[%clk 0:00:15]} 26. Be7 {[%clk 0:00:44]}  Re8 {[%clk 0:00:14]} 27. Bb4 {[%clk 0:00:38]}  Qxg4+ {[%clk 0:00:08]} 28. Nxg4 {[%clk 0:00:39]}  Kh7 {[%clk 0:00:08]} 29. Ne5 {[%clk 0:00:37]}  Bc8 {[%clk 0:00:07]} 30. Kh2 {[%clk 0:00:36]}  Rg8 {[%clk 0:00:07]} 31. Rg1 {[%clk 0:00:35]}  Rxg1 {[%clk 0:00:00]} 32. Kxg1 {[%clk 0:00:36]} 1-0


[Site "https://www.chess.com"]

[Event "Titled Tuesday Blitz November 14 Early 2023"]
[White "Ovetchkin, Roman"]
[Black "Kanyamarala, Tarun"]
[WhiteFideId "4119991"]
[BlackFideId "45004714"]
[WhiteElo "2666"]
[BlackElo "2514"]
[Result "1-0"]
[Round "10"]
[TimeControl "180+1"]
[Date "2023.11.14"]
[WhiteClock "0:00:43"]
[BlackClock "0:00:55"]
[Board "65"]

1. d4 {[%clk 0:03:00]}  Nf6 {[%clk 0:02:58]} 2. c4 {[%clk 0:02:58]}  e6 {[%clk 0:02:58]} 3. g3 {[%clk 0:02:57]}  d5 {[%clk 0:02:57]} 4. Bg2 {[%clk 0:02:57]}  Bb4+ {[%clk 0:02:56]} 5. Bd2 {[%clk 0:02:57]}  Be7 {[%clk 0:02:52]} 6. Nf3 {[%clk 0:02:56]}  O-O {[%clk 0:02:52]} 7. O-O {[%clk 0:02:57]}  Nbd7 {[%clk 0:02:50]} 8. Qc2 {[%clk 0:02:52]}  c6 {[%clk 0:02:51]} 9. a4 {[%clk 0:02:48]}  b6 {[%clk 0:02:42]} 10. a5 {[%clk 0:02:48]}  Ba6 {[%clk 0:02:41]} 11. b3 {[%clk 0:02:48]}  Qc8 {[%clk 0:02:38]} 12. Rc1 {[%clk 0:02:46]}  Qb7 {[%clk 0:02:35]} 13. e3 {[%clk 0:02:37]}  Rfc8 {[%clk 0:02:34]} 14. Na3 {[%clk 0:02:27]}  Ne4 {[%clk 0:02:32]} 15. Be1 {[%clk 0:02:26]}  Nd6 {[%clk 0:02:31]} 16. Nd2 {[%clk 0:02:14]}  Nf6 {[%clk 0:02:28]} 17. b4 {[%clk 0:02:08]}  b5 {[%clk 0:02:20]} 18. c5 {[%clk 0:02:07]}  Nc4 {[%clk 0:02:20]} 19. Nf3 {[%clk 0:01:58]}  Nd7 {[%clk 0:02:09]} 20. Bc3 {[%clk 0:01:55]}  Qc7 {[%clk 0:02:05]} 21. e4 {[%clk 0:01:48]}  Nxa3 {[%clk 0:02:05]} 22. Rxa3 {[%clk 0:01:48]}  dxe4 {[%clk 0:02:06]} 23. Qxe4 {[%clk 0:01:45]}  Nf6 {[%clk 0:02:06]} 24. Qe2 {[%clk 0:01:42]}  Nd5 {[%clk 0:02:06]} 25. Bd2 {[%clk 0:01:42]}  Bf6 {[%clk 0:02:03]} 26. h4 {[%clk 0:01:42]}  Qe7 {[%clk 0:01:58]} 27. Re1 {[%clk 0:01:40]}  Re8 {[%clk 0:01:55]} 28. Rd3 {[%clk 0:01:37]}  Bb7 {[%clk 0:01:53]} 29. Ne5 {[%clk 0:01:36]}  Bxe5 {[%clk 0:01:53]} 30. dxe5 {[%clk 0:01:32]}  a6 {[%clk 0:01:51]} 31. Be4 {[%clk 0:01:31]}  f5 {[%clk 0:01:38]} 32. exf6 {[%clk 0:01:30]}  gxf6 {[%clk 0:01:39]} 33. Bh6 {[%clk 0:01:21]}  Kh8 {[%clk 0:01:37]} 34. Qd2 {[%clk 0:01:18]}  Qf7 {[%clk 0:01:33]} 35. Bf3 {[%clk 0:01:14]}  Rad8 {[%clk 0:01:30]} 36. Re4 {[%clk 0:01:11]}  Qg6 {[%clk 0:01:25]} 37. h5 {[%clk 0:01:09]}  Qf5 {[%clk 0:01:21]} 38. g4 {[%clk 0:01:03]}  Rg8 {[%clk 0:01:14]} 39. Kh2 {[%clk 0:00:47]}  Rxg4 {[%clk 0:01:02]} 40. Rxg4 {[%clk 0:00:47]}  Qxh5+ {[%clk 0:01:02]} 41. Kg1 {[%clk 0:00:43]}  Qe5 {[%clk 0:00:57]} 42. Bg7+ {[%clk 0:00:42]}  Kg8 {[%clk 0:00:55]} 43. Bxf6+ {[%clk 0:00:43]} 1-0


[Site "https://www.chess.com"]

[Event "Titled Tuesday Blitz November 14 Early 2023"]
[White "Grochal, Joey"]
[Black "Makhnev, Denis"]
[WhiteFideId "1019945"]
[BlackFideId "13707647"]
[WhiteElo "2496"]
[BlackElo "2649"]
[Result "0-1"]
[Round "10"]
[TimeControl "180+1"]
[Date "2023.11.14"]
[WhiteClock "0:00:51"]
[BlackClock "0:00:49"]
[Board "68"]

1. e4 {[%clk 0:03:00]}  c6 {[%clk 0:02:58]} 2. d4 {[%clk 0:03:00]}  d5 {[%clk 0:02:59]} 3. Nc3 {[%clk 0:03:00]}  dxe4 {[%clk 0:02:59]} 4. Nxe4 {[%clk 0:03:01]}  Bf5 {[%clk 0:02:59]} 5. Ng3 {[%clk 0:03:01]}  Bg6 {[%clk 0:02:59]} 6. h4 {[%clk 0:03:02]}  h6 {[%clk 0:02:59]} 7. Nf3 {[%clk 0:03:02]}  e6 {[%clk 0:02:59]} 8. h5 {[%clk 0:03:01]}  Bh7 {[%clk 0:03:00]} 9. Bd3 {[%clk 0:03:02]}  Bxd3 {[%clk 0:03:00]} 10. Qxd3 {[%clk 0:03:03]}  Nf6 {[%clk 0:03:00]} 11. Bd2 {[%clk 0:03:02]}  c5 {[%clk 0:03:00]} 12. O-O-O {[%clk 0:03:01]}  Nc6 {[%clk 0:03:00]} 13. Ne2 {[%clk 0:02:37]}  Be7 {[%clk 0:02:53]} 14. Kb1 {[%clk 0:02:32]}  O-O {[%clk 0:02:52]} 15. Rdg1 {[%clk 0:02:28]}  cxd4 {[%clk 0:02:48]} 16. Nexd4 {[%clk 0:02:27]}  Nxd4 {[%clk 0:02:44]} 17. Nxd4 {[%clk 0:02:27]}  Bc5 {[%clk 0:02:43]} 18. Rh4 {[%clk 0:02:11]}  Nxh5 {[%clk 0:02:18]} 19. Rxh5 {[%clk 0:02:08]}  Qxd4 {[%clk 0:02:17]} 20. Qxd4 {[%clk 0:02:02]}  Bxd4 {[%clk 0:02:16]} 21. g4 {[%clk 0:02:02]}  Bxf2 {[%clk 0:02:06]} 22. Rg2 {[%clk 0:02:01]}  Bd4 {[%clk 0:02:01]} 23. g5 {[%clk 0:02:00]}  hxg5 {[%clk 0:01:59]} 24. Rhxg5 {[%clk 0:01:57]}  Rfd8 {[%clk 0:01:49]} 25. a4 {[%clk 0:01:54]}  Rd5 {[%clk 0:01:46]} 26. R5g4 {[%clk 0:01:53]}  Rad8 {[%clk 0:01:42]} 27. Bh6 {[%clk 0:01:49]}  g6 {[%clk 0:01:39]} 28. Bg5 {[%clk 0:01:50]}  R8d7 {[%clk 0:01:32]} 29. c3 {[%clk 0:01:49]}  Bg7 {[%clk 0:01:31]} 30. Rc4 {[%clk 0:01:49]}  f6 {[%clk 0:01:26]} 31. Be3 {[%clk 0:01:47]}  g5 {[%clk 0:01:26]} 32. Bxa7 {[%clk 0:01:47]}  e5 {[%clk 0:01:24]} 33. Be3 {[%clk 0:01:37]}  Kf7 {[%clk 0:01:19]} 34. Kc2 {[%clk 0:01:34]}  Kg6 {[%clk 0:01:13]} 35. b4 {[%clk 0:01:33]}  Bh6 {[%clk 0:01:10]} 36. Rcg4 {[%clk 0:01:30]}  f5 {[%clk 0:01:04]} 37. Rc4 {[%clk 0:01:22]}  g4 {[%clk 0:00:59]} 38. Bxh6 {[%clk 0:01:18]}  Kxh6 {[%clk 0:00:59]} 39. Rc8 {[%clk 0:01:18]}  e4 {[%clk 0:00:57]} 40. Re8 {[%clk 0:01:15]}  Kg5 {[%clk 0:00:55]} 41. a5 {[%clk 0:01:07]}  Kf4 {[%clk 0:00:55]} 42. Kb3 {[%clk 0:01:05]}  Rd2 {[%clk 0:00:51]} 43. Rg1 {[%clk 0:01:03]}  Rd1 {[%clk 0:00:51]} 44. Rxd1 {[%clk 0:01:01]}  Rxd1 {[%clk 0:00:51]} 45. b5 {[%clk 0:01:01]}  g3 {[%clk 0:00:50]} 46. a6 {[%clk 0:01:00]}  bxa6 {[%clk 0:00:49]} 47. bxa6 {[%clk 0:00:51]}  g2 {[%clk 0:00:49]} 0-1


[Site "https://www.chess.com"]

[Event "Titled Tuesday Blitz November 14 Early 2023"]
[White "FoxOnTheRun97"]
[Black "Preobrazhenska_D2011"]
[WhiteElo "2616"]
[BlackElo "2464"]
[Result "1/2-1/2"]
[Round "10"]
[TimeControl "180+1"]
[Date "2023.11.14"]
[WhiteClock "0:00:07"]
[BlackClock "0:00:03"]
[Board "70"]

1. d4 {[%clk 0:03:00]}  Nf6 {[%clk 0:02:59]} 2. Bg5 {[%clk 0:03:00]}  Ne4 {[%clk 0:02:55]} 3. h4 {[%clk 0:03:00]}  h6 {[%clk 0:02:50]} 4. Bf4 {[%clk 0:03:00]}  d5 {[%clk 0:02:46]} 5. Nd2 {[%clk 0:02:59]}  Nf6 {[%clk 0:02:42]} 6. Ngf3 {[%clk 0:02:53]}  Bf5 {[%clk 0:02:35]} 7. e3 {[%clk 0:02:52]}  e6 {[%clk 0:02:34]} 8. Ne5 {[%clk 0:02:52]}  Nbd7 {[%clk 0:02:11]} 9. g4 {[%clk 0:02:41]}  Be4 {[%clk 0:01:51]} 10. f3 {[%clk 0:02:37]}  Bh7 {[%clk 0:01:40]} 11. Bd3 {[%clk 0:02:21]}  Bxd3 {[%clk 0:01:37]} 12. cxd3 {[%clk 0:02:22]}  Bd6 {[%clk 0:01:29]} 13. Qb3 {[%clk 0:02:01]}  Qc8 {[%clk 0:01:01]} 14. Rc1 {[%clk 0:01:54]}  Bxe5 {[%clk 0:00:53]} 15. dxe5 {[%clk 0:01:51]}  Ng8 {[%clk 0:00:53]} 16. d4 {[%clk 0:01:39]}  Ne7 {[%clk 0:00:53]} 17. h5 {[%clk 0:01:35]}  c6 {[%clk 0:00:47]} 18. Qa3 {[%clk 0:01:29]}  Qd8 {[%clk 0:00:43]} 19. Qb4 {[%clk 0:01:21]}  Qc7 {[%clk 0:00:38]} 20. a4 {[%clk 0:01:15]}  a5 {[%clk 0:00:38]} 21. Qa3 {[%clk 0:01:15]}  Qb6 {[%clk 0:00:28]} 22. Rc3 {[%clk 0:01:06]}  Rc8 {[%clk 0:00:26]} 23. Ke2 {[%clk 0:00:39]}  Qa6+ {[%clk 0:00:26]} 24. Kf2 {[%clk 0:00:39]}  b5 {[%clk 0:00:23]} 25. axb5 {[%clk 0:00:37]}  cxb5 {[%clk 0:00:17]} 26. Rxc8+ {[%clk 0:00:36]}  Nxc8 {[%clk 0:00:17]} 27. Rc1 {[%clk 0:00:37]}  b4 {[%clk 0:00:17]} 28. Qa4 {[%clk 0:00:32]}  Nb6 {[%clk 0:00:12]} 29. Qd1 {[%clk 0:00:23]}  a4 {[%clk 0:00:09]} 30. e4 {[%clk 0:00:17]}  a3 {[%clk 0:00:07]} 31. bxa3 {[%clk 0:00:17]}  bxa3 {[%clk 0:00:08]} 32. Ra1 {[%clk 0:00:17]}  O-O {[%clk 0:00:06]} 33. Kg3 {[%clk 0:00:14]}  dxe4 {[%clk 0:00:06]} 34. Nxe4 {[%clk 0:00:14]}  Nd5 {[%clk 0:00:06]} 35. Bd2 {[%clk 0:00:14]}  Qc4 {[%clk 0:00:03]} 36. Bc1 {[%clk 0:00:08]}  Nc3 {[%clk 0:00:03]} 37. Qd2 {[%clk 0:00:07]}  Nxe4+ {[%clk 0:00:04]} 38. fxe4 {[%clk 0:00:07]}  Qb3+ {[%clk 0:00:04]} 39. Qe3 {[%clk 0:00:07]}  Qxe3+ {[%clk 0:00:04]} 40. Bxe3 {[%clk 0:00:07]}  Ra8 {[%clk 0:00:04]} 41. Ra2 {[%clk 0:00:07]}  Nb6 {[%clk 0:00:03]} 42. Kf3 {[%clk 0:00:07]}  Nc4 {[%clk 0:00:04]} 43. Bc1 {[%clk 0:00:06]}  Rd8 {[%clk 0:00:03]} 44. Be3 {[%clk 0:00:05]}  Rb8 {[%clk 0:00:02]} 45. Bc1 {[%clk 0:00:05]}  Rb3+ {[%clk 0:00:03]} 46. Ke2 {[%clk 0:00:04]}  Kf8 {[%clk 0:00:03]} 47. Kd1 {[%clk 0:00:04]}  Rd3+ {[%clk 0:00:02]} 48. Kc2 {[%clk 0:00:05]}  Rxd4 {[%clk 0:00:02]} 49. Bxa3+ {[%clk 0:00:04]}  Nxa3+ {[%clk 0:00:02]} 50. Rxa3 {[%clk 0:00:05]}  Rxe4 {[%clk 0:00:03]} 51. Ra8+ {[%clk 0:00:05]}  Ke7 {[%clk 0:00:04]} 52. Ra7+ {[%clk 0:00:06]}  Ke8 {[%clk 0:00:04]} 53. Ra8+ {[%clk 0:00:06]}  Kd7 {[%clk 0:00:04]} 54. Ra7+ {[%clk 0:00:06]}  Ke8 {[%clk 0:00:03]} 55. Ra8+ {[%clk 0:00:07]}  Ke7 {[%clk 0:00:03]} 56. Ra7+ {[%clk 0:00:07]}  Ke8 {[%clk 0:00:03]} 1/2-1/2


[Site "https://www.chess.com"]

[Event "Titled Tuesday Blitz November 14 Early 2023"]
[White "Skatchkov, Valery"]
[Black "Degtiarev, Evgeny"]
[WhiteFideId "24195812"]
[BlackFideId "4149610"]
[WhiteElo "2590"]
[BlackElo "2385"]
[Result "1-0"]
[Round "10"]
[TimeControl "180+1"]
[Date "2023.11.14"]
[WhiteClock "0:01:39"]
[BlackClock "0:00:07"]
[Board "74"]

1. d4 {[%clk 0:02:59]}  d5 {[%clk 0:02:59]} 2. c4 {[%clk 0:03:00]}  c6 {[%clk 0:02:59]} 3. Nf3 {[%clk 0:02:59]}  Nf6 {[%clk 0:03:00]} 4. Nc3 {[%clk 0:02:59]}  a6 {[%clk 0:03:00]} 5. Qc2 {[%clk 0:02:59]}  b5 {[%clk 0:02:42]} 6. e4 {[%clk 0:02:59]}  b4 {[%clk 0:02:37]} 7. e5 {[%clk 0:02:58]}  bxc3 {[%clk 0:02:28]} 8. exf6 {[%clk 0:02:58]}  cxb2 {[%clk 0:02:16]} 9. Bxb2 {[%clk 0:02:56]}  exf6 {[%clk 0:02:03]} 10. c5 {[%clk 0:02:41]}  Be7 {[%clk 0:01:57]} 11. Bd3 {[%clk 0:02:41]}  g6 {[%clk 0:01:54]} 12. O-O {[%clk 0:02:41]}  O-O {[%clk 0:01:54]} 13. Bc1 {[%clk 0:02:41]}  Re8 {[%clk 0:01:52]} 14. Bh6 {[%clk 0:02:39]}  a5 {[%clk 0:01:44]} 15. Rab1 {[%clk 0:02:19]}  Nd7 {[%clk 0:01:30]} 16. Qa4 {[%clk 0:02:02]}  Ba6 {[%clk 0:01:20]} 17. Rfd1 {[%clk 0:02:01]}  Bxd3 {[%clk 0:01:18]} 18. Rxd3 {[%clk 0:02:02]}  Bxc5 {[%clk 0:00:59]} 19. Qxc6 {[%clk 0:01:47]}  Bf8 {[%clk 0:00:45]} 20. Bf4 {[%clk 0:01:47]}  Rc8 {[%clk 0:00:34]} 21. Qxd5 {[%clk 0:01:47]}  Re6 {[%clk 0:00:26]} 22. h4 {[%clk 0:01:36]}  Nb6 {[%clk 0:00:24]} 23. Qxd8 {[%clk 0:01:37]}  Rxd8 {[%clk 0:00:24]} 24. Bc7 {[%clk 0:01:38]}  Rc8 {[%clk 0:00:18]} 25. Bxb6 {[%clk 0:01:38]}  Rb8 {[%clk 0:00:18]} 26. Rdb3 {[%clk 0:01:38]}  a4 {[%clk 0:00:07]} 27. Rb5 {[%clk 0:01:39]} 1-0


[Site "https://www.chess.com"]

[Event "Titled Tuesday Blitz November 14 Early 2023"]
[White "Aash20"]
[Black "Krivonosov, Oleg"]
[BlackFideId "11600349"]
[WhiteElo "2479"]
[BlackElo "2692"]
[Result "1/2-1/2"]
[Round "10"]
[TimeControl "180+1"]
[Date "2023.11.14"]
[WhiteClock "0:02:35"]
[BlackClock "0:01:38"]
[Board "78"]

1. e4 {[%clk 0:03:00]}  e5 {[%clk 0:02:59]} 2. Nf3 {[%clk 0:03:00]}  Nc6 {[%clk 0:02:59]} 3. Bc4 {[%clk 0:03:00]}  Bc5 {[%clk 0:02:58]} 4. c3 {[%clk 0:03:00]}  Nf6 {[%clk 0:02:57]} 5. d4 {[%clk 0:03:01]}  exd4 {[%clk 0:02:57]} 6. cxd4 {[%clk 0:03:02]}  Bb4+ {[%clk 0:02:56]} 7. Bd2 {[%clk 0:03:02]}  Nxe4 {[%clk 0:02:56]} 8. Bxb4 {[%clk 0:03:00]}  Nxb4 {[%clk 0:02:56]} 9. Bxf7+ {[%clk 0:03:01]}  Kxf7 {[%clk 0:02:57]} 10. Qb3+ {[%clk 0:03:01]}  Kf8 {[%clk 0:02:58]} 11. Qxb4+ {[%clk 0:02:59]}  Qe7 {[%clk 0:02:58]} 12. Qxe7+ {[%clk 0:02:58]}  Kxe7 {[%clk 0:02:59]} 13. O-O {[%clk 0:02:58]}  Kd8 {[%clk 0:02:58]} 14. Nc3 {[%clk 0:02:58]}  Nxc3 {[%clk 0:02:57]} 15. bxc3 {[%clk 0:02:59]}  d6 {[%clk 0:02:57]} 16. Rfe1 {[%clk 0:02:57]}  h6 {[%clk 0:02:55]} 17. Re3 {[%clk 0:02:56]}  Bd7 {[%clk 0:02:45]} 18. Rae1 {[%clk 0:02:54]}  Re8 {[%clk 0:02:44]} 19. d5 {[%clk 0:02:49]}  Rxe3 {[%clk 0:02:41]} 20. Rxe3 {[%clk 0:02:49]}  c6 {[%clk 0:02:41]} 21. dxc6 {[%clk 0:02:43]}  bxc6 {[%clk 0:02:40]} 22. h4 {[%clk 0:02:42]}  Rb8 {[%clk 0:02:39]} 23. Nd4 {[%clk 0:02:33]}  Rb1+ {[%clk 0:02:16]} 24. Kh2 {[%clk 0:02:32]}  Rb2 {[%clk 0:02:16]} 25. Re2 {[%clk 0:02:32]}  Rxe2 {[%clk 0:02:10]} 26. Nxe2 {[%clk 0:02:31]}  c5 {[%clk 0:02:09]} 27. Kg3 {[%clk 0:02:30]}  Ke7 {[%clk 0:02:09]} 28. Kf4 {[%clk 0:02:30]}  Kf6 {[%clk 0:02:09]} 29. f3 {[%clk 0:02:29]}  g5+ {[%clk 0:02:06]} 30. hxg5+ {[%clk 0:02:29]}  hxg5+ {[%clk 0:02:06]} 31. Ke3 {[%clk 0:02:30]}  d5 {[%clk 0:02:04]} 32. f4 {[%clk 0:02:30]}  Be6 {[%clk 0:01:46]} 33. fxg5+ {[%clk 0:02:28]}  Kxg5 {[%clk 0:01:45]} 34. a3 {[%clk 0:02:28]}  Kg4 {[%clk 0:01:42]} 35. Nf4 {[%clk 0:02:26]}  d4+ {[%clk 0:01:36]} 36. cxd4 {[%clk 0:02:26]}  cxd4+ {[%clk 0:01:37]} 37. Kxd4 {[%clk 0:02:25]}  Kxf4 {[%clk 0:01:36]} 38. Kc3 {[%clk 0:02:25]}  Kg3 {[%clk 0:01:35]} 39. Kb2 {[%clk 0:02:26]}  Kxg2 {[%clk 0:01:36]} 40. a4 {[%clk 0:02:26]}  Kf3 {[%clk 0:01:36]} 41. a5 {[%clk 0:02:27]}  a6 {[%clk 0:01:36]} 42. Ka1 {[%clk 0:02:27]}  Ke4 {[%clk 0:01:36]} 43. Kb1 {[%clk 0:02:27]}  Kd3 {[%clk 0:01:37]} 44. Ka1 {[%clk 0:02:28]}  Kc4 {[%clk 0:01:37]} 45. Kb1 {[%clk 0:02:29]}  Kb5 {[%clk 0:01:37]} 46. Ka1 {[%clk 0:02:30]}  Kxa5 {[%clk 0:01:37]} 47. Kb1 {[%clk 0:02:31]}  Kb4 {[%clk 0:01:38]} 48. Ka1 {[%clk 0:02:32]}  Kb3 {[%clk 0:01:37]} 49. Kb1 {[%clk 0:02:33]}  a5 {[%clk 0:01:37]} 50. Ka1 {[%clk 0:02:34]}  a4 {[%clk 0:01:37]} 51. Kb1 {[%clk 0:02:35]}  a3 {[%clk 0:01:38]} 52. Ka1 {[%clk 0:02:35]}  a2 {[%clk 0:01:38]} 1/2-1/2


[Site "https://www.chess.com"]

[Event "Titled Tuesday Blitz November 14 Early 2023"]
[White "Makaraci, Tunahan"]
[Black "Rozman, Levy"]
[WhiteFideId "6356559"]
[BlackFideId "2039877"]
[WhiteElo "2479"]
[BlackElo "2686"]
[Result "0-1"]
[Round "10"]
[TimeControl "180+1"]
[Date "2023.11.14"]
[WhiteClock "0:00:00"]
[BlackClock "0:01:39"]
[Board "79"]

1. e4 {[%clk 0:03:00]}  g6 {[%clk 0:03:00]} 2. d4 {[%clk 0:02:54]}  Bg7 {[%clk 0:03:01]} 3. Nc3 {[%clk 0:02:54]}  a6 {[%clk 0:03:01]} 4. a4 {[%clk 0:02:54]}  d6 {[%clk 0:03:02]} 5. g3 {[%clk 0:02:54]}  Nc6 {[%clk 0:03:03]} 6. Nge2 {[%clk 0:02:53]}  Bg4 {[%clk 0:03:03]} 7. Be3 {[%clk 0:02:45]}  Bf3 {[%clk 0:03:03]} 8. Rg1 {[%clk 0:02:45]}  e5 {[%clk 0:03:03]} 9. dxe5 {[%clk 0:02:41]}  Nxe5 {[%clk 0:03:03]} 10. Bg2 {[%clk 0:02:29]}  Qd7 {[%clk 0:02:55]} 11. Kf1 {[%clk 0:02:22]}  h5 {[%clk 0:02:53]} 12. Bd4 {[%clk 0:02:17]}  Bxg2+ {[%clk 0:02:51]} 13. Rxg2 {[%clk 0:02:17]}  Nf6 {[%clk 0:02:43]} 14. Bxe5 {[%clk 0:02:15]}  dxe5 {[%clk 0:02:44]} 15. Qxd7+ {[%clk 0:02:15]}  Nxd7 {[%clk 0:02:45]} 16. f3 {[%clk 0:02:09]}  c6 {[%clk 0:02:43]} 17. Rd1 {[%clk 0:02:08]}  Ke7 {[%clk 0:02:41]} 18. Nc1 {[%clk 0:02:07]}  Nc5 {[%clk 0:02:39]} 19. Nd3 {[%clk 0:02:05]}  Ne6 {[%clk 0:02:39]} 20. Nc1 {[%clk 0:01:13]}  h4 {[%clk 0:02:39]} 21. Kg1 {[%clk 0:01:10]}  Bh6 {[%clk 0:02:37]} 22. Kf2 {[%clk 0:01:04]}  Nd4 {[%clk 0:02:36]} 23. f4 {[%clk 0:00:17]}  Nxc2 {[%clk 0:02:36]} 24. Kf3 {[%clk 0:00:13]}  Nd4+ {[%clk 0:02:35]} 25. Ke3 {[%clk 0:00:09]}  Rad8 {[%clk 0:02:35]} 26. Rgd2 {[%clk 0:00:07]}  h3 {[%clk 0:02:29]} 27. N1e2 {[%clk 0:00:06]}  Nxe2 {[%clk 0:02:26]} 28. Rxd8 {[%clk 0:00:04]}  Rxd8 {[%clk 0:02:27]} 29. Rxd8 {[%clk 0:00:05]}  exf4+ {[%clk 0:02:06]} 30. Kxe2 {[%clk 0:00:04]}  Kxd8 {[%clk 0:02:05]} 31. Kf3 {[%clk 0:00:01]}  fxg3 {[%clk 0:01:49]} 32. Kxg3 {[%clk 0:00:02]}  Bg7 {[%clk 0:01:36]} 33. Nd1 {[%clk 0:00:02]}  Kc7 {[%clk 0:01:36]} 34. Kxh3 {[%clk 0:00:02]}  Kb6 {[%clk 0:01:37]} 35. Kg4 {[%clk 0:00:02]}  Ka5 {[%clk 0:01:38]} 36. h4 {[%clk 0:00:01]}  Kxa4 {[%clk 0:01:38]} 37. h5 {[%clk 0:00:02]}  gxh5+ {[%clk 0:01:38]} 38. Kxh5 {[%clk 0:00:00]}  Kb3 {[%clk 0:01:39]} 0-1


[Site "https://www.chess.com"]